Cogmind - Beta 17 @@@ ROGUE MODE // 2026.08.06 @ 19:02:35 Player: Suffixing Result: Destroyed self with Grenade Launcher Performance ------------- Evolutions (0) 0 Regions Visited (4) 800 Robots Destroyed (26) 130 Value Destroyed (552) 552 Prototype IDs (23) 460 Alien Tech Used (0) 0 Bonus (-102) -102 TOTAL SCORE: 1840 Bonus ------- Aligned with FarCom 300 Friendly Fire -402 Cogmind --------- Core Integrity 0/250 Matter 133/300 Energy 100/100 System Corruption 1% Temperature Cool (0) Movement Treading (160) Location -9/Mines Parts ------- > --- POWER (1) -------- (None) > --- PROPULSION (2) --- Light Treads Light Treads > --- UTILITY (2) ------ Large Storage Unit > --- WEAPON (2) ------- Grenade Launcher > --- INVENTORY (15) --- Light Ion Engine Light Treads Light Treads Potential Leg Potential Leg Compact Wheel Improved Heat Sink Target Analyzer Hacking Suite PSU Rigger Heavy Assault Rifle Light Cannon Longsword +1 Peak State ------------ > --- POWER ------------ Light Ion Engine > --- PROPULSION ------- Light Treads Light Treads > --- UTILITY ---------- Large Storage Unit > --- WEAPON ----------- Light Cannon Light Cannon > --- INVENTORY -------- Light Ion Engine Light Treads Light Treads Light Treads Potential Leg Potential Leg Compact Wheel Improved Heat Sink Hacking Suite PSU Rigger Heavy Assault Rifle Grenade Launcher Longsword +1 [Rating: 11] Favorites ----------- Power Light Ion Engine Engine Light Ion Engine Propulsion Light Treads Treads Light Treads Leg Aluminum Leg Utility Large Storage Unit Storage Large Storage Unit Weapon Light Cannon Energy Gun Small Laser Ballistic Gun Assault Rifle Ballistic Cannon Light Cannon Launcher Grenade Launcher Build | -11 -10 -10 -10 -9 ------- Run | Yrd Mat Min Exi Min Slots Evolved . | . . . . . Power . | . . . . . Propulsion . | . . . . . Utility . | . . . . . Weapon . | . . . . . Parts Attached 9 | 3 4 . . 2 Power 1 | . 1 . . . Engine 1 | . 1 . . . Core . | . . . . . Reactor . | . . . . . Propulsion 3 | 2 . . . 1 Treads 3 | 2 . . . 1 Leg . | . . . . . Wheel . | . . . . . Hover . | . . . . . Flight . | . . . . . Utility 1 | . 1 . . . Device . | . . . . . Storage 1 | . 1 . . . Processor . | . . . . . Hackware . | . . . . . Protection . | . . . . . Artifact . | . . . . . Weapon 4 | 1 2 . . 1 Energy Gun . | . . . . . Energy Cannon . | . . . . . Ballistic Gun 1 | 1 . . . . Ballistic Cannon 2 | . 2 . . . Launcher 1 | . . . . 1 Special Weapon . | . . . . . Impact Weapon . | . . . . . Slashing Weapon . | . . . . . Piercing Weapon . | . . . . . Special Melee Weapon . | . . . . . Unidentified Prototypes . | . . . . . Parts Lost 3 | . . . . 3 Power 1 | . . . . 1 Propulsion 1 | . . . . 1 Utility . | . . . . . Weapon 1 | . . . . 1 Highest Loss Streak 3 | . . . . 3 To Critical Strikes . | . . . . . Average Backups 7 | 4 3 6 12 14 Power 1 | 1 1 1 1 1 Propulsion 3 | 2 1 2 5 6 Utility 2 | . 1 2 2 4 Weapon 1 | . . . 2 3 Tool/Special . | . . . . . Unused Backups 13 | . 2 . . 11 Power 1 | . . . . 1 Propulsion 5 | . . . . 5 Utility 4 | . 1 . . 3 Weapon 3 | . 1 . . 2 Tool/Special . | . . . . . Average Slot Usage (%) 84 | . 84 85 85 74 Engine 13 | . 13 14 14 10 Treads 27 | . 27 28 28 26 Storage 14 | . 14 14 14 14 Ballistic Gun 4 | . 13 . . . Ballistic Cannon 21 | . 11 28 28 20 Peak Build Rating 11 | 6 6 7 11 11 Average Rating 7 | 6 5 6 10 10 On Entrance 7 | 6 6 6 7 11 Avg Prop Armor Cover (%) . | . . . . . Naked Turns . | . . . . . Heaviest Build 29 | 11 29 29 29 29 Greatest Support 40 | 40 40 40 40 40 Greatest Overweight (x) 1 | . 1 . . . Average Overweight (x) . | . . . . . Largest Inventory Capacity 15 | 8 15 15 15 15 Average Capacity 13 | 8 11 15 15 15 Most Carried 14 | 6 7 9 14 14 Average Carried 7 | 3 3 6 12 13 Final Capacity 15 | 8 15 15 15 15 Final Carried 14 | 2 5 9 14 13 Class Distribution -------------------- 100% | Mutant Dominant Class ---------------- Mutant | -10/Materials Mutant | -10/Mines Mutant | -10/Exiles Mutant | -9/Mines Resources | -11 -10 -10 -10 -9 ----------- Run | Yrd Mat Min Exi Min Matter Collected 645 | 223 302 120 . . Remotely . | . . . . . Salvage Created 781 | . 521 211 14 35 Parts 41 | . 33 5 3 . Haulers Intercepted 1 | . 1 . . . Recyclers Shooed 2 | . 2 . . . Parts Field Recycled . | . . . . . Retrieved Matter . | . . . . . Parts Self-Destructed . | . . . . . Prevented . | . . . . . Parts Restored . | . . . . . Kills | -11 -10 -10 -10 -9 ------- Run | Yrd Mat Min Exi Min Combat Hostiles Destroyed 25 | . 9 3 1 12 Guns 4 | . 4 . . . Cannons 9 | . 5 3 1 . AOE 12 | . . . . 12 Classes Destroyed 11 | . 7 2 1 1 Worker 3 | . 2 1 . . Builder 1 | . 1 . . . Tunneler 1 | . 1 . . . Hauler 1 | . 1 . . . Recycler 1 | . . 1 . . Operator 2 | . 2 . . . Watcher 2 | . 2 . . . Swarmer 3 | . . 3 . . Grunt 9 | . 9 . . . Programmer 1 | . . . 1 . Assembled 12 | . . . . 12 Thug 2 | . . 2 . . Best Kill Streak 12 | . 4 3 1 12 Combat Bots Only 12 | . 3 3 1 12 Max Kills in Single Turn 3 | . 2 1 1 3 Gunslinging . | . . . . . Exploded 3 | . . . . 3 Melee . | . . . . . Uniques/NPCs Destroyed . | . . . . . Combat | -11 -10 -10 -10 -9 -------- Run | Yrd Mat Min Exi Min Hostile Shots Fired 94 | . 41 12 10 31 Missed 32 | . 12 4 5 11 Hits 62 | . 29 8 5 20 Melee 3 | . . . . 3 Projectile 59 | . 29 8 5 17 Critical Strikes 1 | . . . 1 . Damage Taken 907 | . 365 79 75 388 Core 267 | . 115 6 31 115 Absorbed by Shields . | . . . . . Core Remaining (%) 100 | 100 . . . . Volleys Fired 77 | . 44 15 4 14 Largest 2 | . 2 2 2 2 Hottest 60 | . 60 60 60 60 Shots Fired 144 | . 87 30 8 19 Gun 59 | . 59 . . . Cannon 76 | . 28 30 8 10 Launcher 9 | . . . . 9 Special . | . . . . . Kinetic 120 | . 72 30 8 10 Thermal 15 | . 15 . . . Explosive 9 | . . . . 9 Electromagnetic . | . . . . . Robot Hit Streak 7 | . 7 7 5 5 Robot Miss Streak 5 | . 3 2 1 5 Penetration Max . | . . . . . Secondary Targets . | . . . . . Shots Hit Robots 82 | . 50 17 7 8 Core Hits 60 | . 28 8 1 23 Critical Kills . | . . . . . Critical Parts Destroyed . | . . . . . Critical Strikes 2 | . 1 . 1 . Blast 2 | . 1 . 1 . Melee Attacks . | . . . . . Impact . | . . . . . Slashing . | . . . . . Piercing . | . . . . . Sneak Attacks . | . . . . . Combat Hostiles . | . . . . . Follow-up Attacks . | . . . . . Damage Inflicted 2123 | . 922 380 153 668 Guns 448 | . 448 . . . Cannons 858 | . 288 380 153 37 Explosions 804 | . 173 . . 631 Melee . | . . . . . Ramming 13 | . 13 . . . Kinetic 1184 | . 614 380 153 37 Thermal 122 | . 122 . . . Explosive 804 | . 173 . . 631 Electromagnetic . | . . . . . Impact . | . . . . . Slashing . | . . . . . Piercing . | . . . . . Highest Corruption 1 | . . . 1 1 Average Corruption 1 | . . . 1 1 Corruption Purged . | . . . . . Corruption Blocked . | . . . . . Effects 1 | . . . . 1 Data Loss (minor) 1 | . . . . 1 Overload Shots . | . . . . . Overflow Damage 20 | . 6 . 9 5 Projectiles 9 | . . . 9 . Explosions 11 | . 6 . . 5 Melee . | . . . . . Knockbacks 10 | . 1 6 1 2 Impact . | . . . . . Kinetic 10 | . 1 6 1 2 Secondary . | . . . . . Self-Inflicted Damage 114 | . . . . 114 Shots 5 | . . . . 5 Rammed 4 | . 4 . . . Targets Rammed 5 | . 5 . . . Kicked . | . . . . . Crushed 1 | . 1 . . . Highest Temperature 45 | . 45 . . 10 Average Temperature 12 | . 12 . . 10 Received Heat Transfer 230 | . 201 9 . 20 Siege Activations . | . . . . . Martial Activations . | . . . . . Shielding Activations . | . . . . . Robots Disrupted . | . . . . . Combat Hostiles . | . . . . . Robots Corrupted . | . . . . . Combat Hostiles . | . . . . . Parts Fried . | . . . . . Impact Corruptions . | . . . . . Robots Melted . | . . . . . Combat Hostiles . | . . . . . Parts Melted . | . . . . . Heat Transferred 275 | . 275 . . . Parts Sabotaged . | . . . . . Parts Stolen . | . . . . . Parts Stripped . | . . . . . Power Chain Reactions . | . . . . . Alert | -11 -10 -10 -10 -9 ------- Run | Yrd Mat Min Exi Min Maximum Alert Level . | . . . . . Low Security (%) 100 | 100 100 100 . 100 Level 1 . | . . . . . Level 2 . | . . . . . Level 3 . | . . . . . Level 4 . | . . . . . Level 5 . | . . . . . High Security . | . . . . . Max Security . | . . . . . Peak Influence 116 | . 116 60 . 29 Initial 19 | . . 19 . . Average 28 | . 42 9 . 6 Influence Increases 500 | . 340 80 20 60 Destroy 0b10 Robot/C 260 | . 180 60 20 . Destroy 0b10 Robot/NC 55 | . 45 10 . . Destroy Leader 66 | . 56 10 . . Disable Machine 45 | . 30 . . 15 Destroy Structure 59 | . 14 . . 45 Lose Combat Pursuer 15 | . 15 . . . Influence Decreases 468 | . 290 130 6 42 Entered New Map 45 | . . 31 . 14 Time Decay 405 | . 290 99 6 10 Lost Part 18 | . . . . 18 Squads Dispatched 2 | . 2 . . . Investigation . | . . . . . Extermination . | . . . . . Reinforcement 2 | . 2 . . . Assault . | . . . . . Garrison . | . . . . . Intercept . | . . . . . Searches Triggered . | . . . . . Construction Impeded . | . . . . . Haulers Reinforced . | . . . . . Active Scanning Responses . | . . . . . Cargo Convoy Interrupts . | . . . . . Stealth | -11 -10 -10 -10 -9 --------- Run | Yrd Mat Min Exi Min Distress Signals 3 | . 3 . . . Communications Jammed . | . . . . . Distress Signals . | . . . . . Times Spotted 48 | . 22 4 1 21 Peak Tracking Total 18 | . 4 2 1 18 Tactical Retreats 4 | . 1 . . 3 Traps | -11 -10 -10 -10 -9 ------- Run | Yrd Mat Min Exi Min Traps Triggered 2 | . 2 . . . Indirectly . | . . . . . Trap Hack Attempts . | . . . . . Triggered . | . . . . . Disarmed . | . . . . . Reprogrammed . | . . . . . Reused . | . . . . . Traps Extracted . | . . . . . Installed . | . . . . . Triggered . | . . . . . Machines | -11 -10 -10 -10 -9 ---------- Run | Yrd Mat Min Exi Min Machines Disabled 4 | . 2 . 1 1 Max in Single Turn 2 | . 2 . 1 1 Machines Repaired . | . . . . . Machines Dismantled . | . . . . . Machines Sabotaged . | . . . . . Overloaded Fab Kills . | . . . . . Hacking | -11 -10 -10 -10 -9 --------- Run | Yrd Mat Min Exi Min Machines Accessed 2 | . 1 . 1 . Terminals 1 | . 1 . . . Fabricators . | . . . . . Repair Stations . | . . . . . Recycling Units . | . . . . . Scanalyzers . | . . . . . Garrison Access . | . . . . . Total Hacks 3 | . 2 . 1 . Successful 1 | . . . 1 . Failed 2 | . 2 . . . Catastrophic . | . . . . . Database Lockouts . | . . . . . Manual 1 | . . . 1 . Terminals 2 | . 2 . . . Fabricators . | . . . . . Repair Stations . | . . . . . Recycling Units . | . . . . . Scanalyzers . | . . . . . Garrison Access . | . . . . . Terminal Hacks 1 | . . . 1 . Proto ID Catalog 1 | . . . 1 . Fabricator Hacks . | . . . . . Repair Station Hacks . | . . . . . Recycling Unit Hacks . | . . . . . Scanalyzer . | . . . . . Garrison Access Hacks . | . . . . . Unauthorized Hacks . | . . . . . Terminals . | . . . . . Fabricators . | . . . . . Repair Stations . | . . . . . Recycling Units . | . . . . . Scanalyzers . | . . . . . Garrison Access . | . . . . . Data Cores Recovered . | . . . . . Used . | . . . . . Hacking Detections 1 | . 1 . . . Full Trace Events . | . . . . . Feedback Events . | . . . . . Feedback Blocked . | . . . . . Robot Schematics Acquired . | . . . . . Robots Built . | . . . . . Authchips . | . . . . . Time . | . . . . . Total Robot Build Rating . | . . . . . Part Schematics Acquired . | . . . . . Parts Built . | . . . . . Authchips . | . . . . . Time . | . . . . . Total Part Build Rating . | . . . . . Part Studies Acquired . | . . . . . Parts Repaired . | . . . . . Time . | . . . . . Parts Recycled . | . . . . . Recycled Matter . | . . . . . Retrieved Matter . | . . . . . Retrieved Components . | . . . . . Parts Scanalyzed . | . . . . . Part Schematics Acquired . | . . . . . Parts Damaged . | . . . . . Bothacking | -11 -10 -10 -10 -9 ------------ Run | Yrd Mat Min Exi Min Used RIF Installer . | . . . . . Robots Hacked . | . . . . . Non-combat . | . . . . . Combat . | . . . . . Robot Hacks Applied . | . . . . . Relay Couplers Released . | . . . . . Fabnet Peak Effective % . | . . . . . Robots Rewired . | . . . . . Allies Hacked . | . . . . . Hacks Repelled . | . . . . . Allies | -11 -10 -10 -10 -9 -------- Run | Yrd Mat Min Exi Min Total Allies . | . . . . . Largest Group . | . . . . . Highest-Rated Group . | . . . . . Highest-Rated Ally . | . . . . . Total Orders . | . . . . . Ally Attacks . | . . . . . Total Damage . | . . . . . Kills . | . . . . . Allies Corrupted . | . . . . . Allies Melted . | . . . . . Intel | -11 -10 -10 -10 -9 ------- Run | Yrd Mat Min Exi Min Active Infowar (turns) . | . . . . . Robot Analysis Total . | . . . . . Derelict Logs Recovered 1 | . . 1 . . Drone Launches . | . . . . . Drone Recoveries . | . . . . . Exploration | -11 -10 -10 -10 -9 ------------- Run | Yrd Mat Min Exi Min Turns Passed 2270 | 10 825 526 854 55 Spaces Moved 1029 | 3 384 299 330 13 Core . | . . . . . Treads 1029 | 3 384 299 330 13 Legs . | . . . . . Wheels . | . . . . . Hover . | . . . . . Flight . | . . . . . Fastest Speed 160 | 160 160 160 160 160 Average Speed 160 | 160 160 160 160 160 Slowest Speed 240 | 160 240 160 160 160 Overloaded Moves . | . . . . . Propulsion Burnouts . | . . . . . Robots Hopped . | . . . . . Potential Cave-ins . | . . . . . Cave-ins Triggered . | . . . . . Exploration Rate (%) 38 | 2 55 63 59 12 Regions Visited 4 Branch Regions 3 Pre-discovered Areas 2 | . . 2 . . Known Exits Taken . | . . . . . Unknown Exits Taken 4 | 1 1 1 1 . Scrap Searched 1 | . . 1 . . Spaces Dug . | . . . . . Terrain Destroyed 64 | . 13 . . 51 Melee . | . . . . . Projectile . | . . . . . AOE 64 | . 13 . . 51 Terrain Rammed . | . . . . . Walls Destroyed . | . . . . . Machines Disabled . | . . . . . Actions | -11 -10 -10 -10 -9 --------- Run | Yrd Mat Min Exi Min Total 1507 | 9 504 317 648 29 Wait 364 | . 54 . 310 . Move 1025 | 2 383 298 329 13 Hop . | . . . . . Pick Up 18 | . 9 4 5 . Fast Attach . | . . . . . Attach 4 | . 3 . . 1 Detach . | . . . . . Swap 7 | 3 3 . . 1 Drop 7 | 4 3 . . . Fire 77 | . 44 15 4 14 Melee . | . . . . . Ram . | . . . . . Kick . | . . . . . Crush 5 | . 5 . . . Escape Stasis . | . . . . . Rewire . | . . . . . Trap . | . . . . . Miscellaneous . | . . . . . Route ------- -11/Scrapyard -10/Materials (discovered 2 exits: [*Mat] / [*Min]) -10/Mines (discovered 2 exits: [*Mat] / *Exi) -10/Exiles -9/Mines History --------- Turn | Location | Event 8 | -11/Scrapyard | Discovered new exit (range 1) 11 | -11/Scrapyard | Entered Materials 312 | -10/Materials | Build established: Mutant 337 | -10/Materials | Discovered new exit (range 6) 781 | -10/Materials | Discovered new exit (range 13) 836 | -10/Materials | Entered Mines 837 | -10/Mines | Learned location of Storage (-7) 1104 | -10/Mines | Joined a pair of Derelicts in attacking an 0b10 outpost 1345 | -10/Mines | Discovered new exit (range 12) 1354 | -10/Mines | Deemed a non-threat by the Exiles lab entrance 1356 | -10/Mines | Discovered new exit (range 5) 1362 | -10/Mines | Entered Exiles 1406 | -10/Exiles | Met 8R-AWN 1430 | -10/Exiles | Met EX-HEX 1471 | -10/Exiles | Met EX-BIN 1490 | -10/Exiles | Aligned with FarCom system 1492 | -10/Exiles | Given EX-Vault access code 1529 | -10/Exiles | Opened EX-Vault 1535 | -10/Exiles | Found Prototype Slashing Weapon 1538 | -10/Exiles | Found Prototype Leg 1540 | -10/Exiles | Found Prototype Leg 1545 | -10/Exiles | Identified Potential Leg (x2) 1545 | -10/Exiles | Identified Longsword +1 1549 | -10/Exiles | Found PSU Rigger 1581 | -10/Exiles | Warned to stay clear of 0b10 Research branches 1598 | -10/Exiles | Exiles lab attacked by MAIN.C 1698 | -10/Exiles | Discovered new exit (range 10) 2167 | -10/Exiles | Core integrity fell below 50% 2216 | -10/Exiles | Stole three prototypes: Potential Leg, PSU Rigger, Longsword +1 2216 | -10/Exiles | Entered Mines 2217 | -9/Mines | Assembled infested the area 2222 | -9/Mines | Assisted by a Guerilla fighting off Assembled 2249 | -9/Mines | Core integrity fell below 20% 2271 | -9/Mines | Destroyed self with Grenade Launcher Last Messages --------------- 02254_ as-96609 destroyed. 02254_ as-05113 destroyed. 02254_ Lgt. Ion Engine destroyed. 02254_ Destroyed Lgt. Ion Engine. 02254_ as-49206 destroyed. 02256_ Lgt. Cannon destroyed. 02256_ as-47378 destroyed. 02256_ as-24665 destroyed. 02256_ Lgt. Treads destroyed. 02258_ as-31032 destroyed. 02258_ as-27089 destroyed. 02260_ as-16769 destroyed. 02260_ Destroyed Asb. Hover Unit. 02260_ as-64231 destroyed. 02260_ as-13824 destroyed. 02262_ as-56687 destroyed. 02264_ as-08687 destroyed. 02264_ Destroyed Asb. Hover Unit. 02269_ The unstable cave ceiling collapses. 02271_ Destroyed Asb. Hover Unit. Map ----- +----------------------------------------------------+ | ??????????????????????????????? | | ??????????????????????????????? | | ??????????????????????????????? | | ??????????????????????????????? | | ??????????????????????????????? | | ??????????????????????????????? | | ??????????????????????????????? | | ??????????????????????????????? | | ??????????????????????????????? | | ??????????????????????????????? | | ?????? ?????????????????????? | | ????? ???????g????????????? | | ????? ????????????????????? | | ????? ????????????????????? | | ????? ????????????????????? | | ????? ?????????????????????? | | ?????# ?????????????????????? | | ?????# ?????????????????????? | | ?????# ?????????????????????? | | ?????# #?????????????????????? | | ?????# ###??????####?????????? | | ?????# ####??? ??????????? | | ???### $ ### #??????????? | | ???# #??????????? | | ???# a #??????????? | | ???# @ #??????????? | | ???## % #??????????? | | ????# a #??????????? | | ????# a #??????????? | | ???# # ####??????????? | | ???# #?????????????? | | ???# # ##?????????????? | | ???# % # ###??????????????? | | ???# # #??????????????? | | ???# #### #??????????????? | | ???## ## #??# ##?????????????? | | ????# ?? #?## #######???????? | | ????# ?? #?# #??????? | | ???? ?? ?# % #?????? | | ???? ??? ?## #?????? | | ???? ??????## % #???? | | ???? ???????? ##### #???? | | ?????#???????? ##?????????? | | ??????????????## #??????????? | | ???????????????? #??????????? | | ???????????????? ##??????????? | | ???????????????? ##???????????? | | ????????????????##????????????? | | ??????????????????????????????? | | ??????????????????????????????? | +----------------------------------------------------+ Best States ------------- Heat Dissipation 25 Energy Generation 10 Energy Capacity 125 Matter Stores 300 Matter Capacity 300 Sight Range 16 Terrain Scan Density 10 Evasion (%) 40 Recoil Reduction 2 Item Schematics ----------------- None Robot Schematics ------------------ None Fabricated ------------ Nothing Repaired ---------- Nothing Studied --------- None Alien Tech Used ----------------- None Achievements -------------- None Challenges ------------ None Game ------ Seed ReflectiveGravitonLegs Manual? 1 Play Time 00:09:58 Cumulative 74.7 hours Start 2026.08.06 @ 18:53:28 End 2026.08.06 @ 19:02:35 Sessions 1 Manual Loads 0 Difficulty Rogue Special Mode None Game No. 315 Rogue 270 Adventurer 45 Explorer 0 Win Type - Total 3 Types 3/0/0/0/0/0/0/0/0/0 Lore% 68 Gallery% 48 Achievement% 48 Wizard Run 0 Options --------- Layout 1 ASCII 0 Keyboard 0 Movement Numpad Keybinds 0 Fullscreen 1 Font 24/Smallcaps Map View 50x35 Zoom Use 0% Tactical HUD 1 Map Filters NONE Filters NONE Steam 1 RUN: e3322629-c55b-45a8-87da-36d09d6e4ea1